bitfinex/quotes_SOLUSD_20250217
["timestamp","ask_amount","ask_price","bid_price","bid_amount"]
[1739773630409,0.063,184.89,184.88,15.83801406]
[1739773631413,0.063,184.89,184.87,15.83801406]
[1739773631594,8.55575526,184.89,184.87,15.83801406]
[1739773631988,8.55575526,184.89,184.86,15.86801406]
[1739773632189,8.55575526,184.89,184.86,0.03]
[1739773633184,15.83801406,184.87,184.86,0.03]
[1739773633493,29.24986259,184.87,184.86,0.03]
[1739773634615,5.4716,184.89,184.86,0.03]
[1739773634912,13.41184853,184.88,184.86,0.03]
[1739773635098,29.24986259,184.88,184.86,0.03]
[1739773635605,34.21601809,184.87,184.86,0.03]
[1739773636192,50.05403215,184.87,184.86,0.03]
[1739773636610,34.21601809,184.87,184.86,0.03]
[1739773637026,30.45746063,184.87,184.86,0.03]
[1739773637317,17.0456121,184.87,184.86,0.03]
[1739773638926,8.51747569,184.88,184.86,0.03]
[1739773642409,8.51747569,184.88,184.87,15.83801406]
[1739773643109,8.58047569,184.89,184.86,0.03]
[1739773643815,8.58047569,184.89,184.86,15.86801406]
[1739773647017,8.58047569,184.89,184.87,15.83801406]
[1739773648313,13.98907569,184.89,184.86,0.03]
[1739773648618,8.58047569,184.89,184.86,0.03]
[1739773649499,13.98907569,184.89,184.86,0.03]
[1739773650329,5.4716,184.89,184.86,0.03]
[1739773651201,21.30961406,184.89,184.86,0.03]
[1739773651402,15.83801406,184.87,184.86,0.03]
[1739773651602,15.83801406,184.88,184.86,0.03]
[1739773652415,24.35548975,184.88,184.86,0.03]
[1739773652615,5.4092,184.87,184.86,0.03]
[1739773653611,8.51747569,184.88,184.86,0.03]
[1739773653794,13.92637569,184.88,184.86,0.03]
[1739773653996,8.51747569,184.88,184.86,0.03]
[1739773654200,8.51747569,184.88,184.87,10.13057576]
[1739773654414,17.0456121,184.88,184.87,10.13057576]
[1739773654626,17.0456121,184.88,184.86,15.85210197]
[1739773655834,17.0456121,184.88,184.87,15.82210197]
[1739773656523,0.063,184.89,184.86,15.85210197]
[1739773658404,0.063,184.89,184.86,0.03]
[1739773658804,0.063,184.89,184.86,15.85210197]
[1739773659227,0.063,184.88,184.86,15.85210197]
[1739773663045,0.063,184.88,184.86,0.03]
[1739773665347,0.063,184.88,184.87,15.82210197]
[1739773674657,0.063,184.88,184.87,10.12489723]
[1739773674961,0.063,184.88,184.86,86.9393]
[1739773675136,0.063,184.88,184.86,81.53]
[1739773676642,0.063,184.88,184.86,91.65489723]
[1739773676959,0.063,184.88,184.86,81.53]
[1739773677662,10.18789723,184.88,184.86,0.03]
[1739773677851,10.12489723,184.87,184.86,0.03]
[1739773678858,9.77739723,184.87,184.86,0.03]
[1739773679048,0.063,184.88,184.86,0.03]
[1739773679530,8.51601969,184.87,184.86,0.03]
[1739773680129,8.51601969,184.87,184.86,10.15489723]
[1739773680941,8.51601969,184.87,184.86,0.03]
[1739773681142,0.063,184.88,184.86,0.03]
[1739773681533,0.063,184.88,184.86,10.15489723]
[1739773683072,0.063,184.88,184.87,10.12489723]
[1739773684454,0.063,184.88,184.86,81.53]
[1739773688079,0.063,184.88,184.86,91.65489723]
[1739773688673,0.063,184.88,184.86,97.06429723]
[1739773689043,0.063,184.88,184.86,86.9394]
[1739773690073,0.063,184.88,184.86,97.06429723]
[1739773690759,0.063,184.88,184.86,81.53]
[1739773691873,0.063,184.88,184.86,86.9394]
[1739773692079,0.063,184.88,184.86,81.53]
[1739773692383,0.063,184.88,184.86,0.03]
[1739773692543,10.18789723,184.88,184.86,0.03]
[1739773694085,10.12489723,184.87,184.86,0.03]
[1739773695883,10.18789723,184.88,184.86,0.03]
[1739773696055,10.12489723,184.87,184.86,0.03]
[1739773696379,18.64091692,184.87,184.86,0.03]
[1739773697257,32.05276545,184.87,184.86,0.03]
[1739773698349,37.46196545,184.87,184.86,0.03]
[1739773699073,77.96155437,184.87,184.86,0.03]
[1739773699675,78.96155437,184.87,184.86,0.03]
[1739773700058,91.24677876,184.87,184.86,0.03]
[1739773700371,18.82154853,184.85,184.84,0.03]
[1739773700585,28.94644576,184.85,184.84,0.03]
[1739773701275,32.18943371,184.85,184.84,0.03]
[1739773701863,40.70047735,184.85,184.84,0.03]
[1739773702050,32.18943371,184.85,184.84,0.03]
[1739773703588,40.70047735,184.85,184.84,0.03]
[1739773706263,35.94115271,184.85,184.84,0.03]
[1739773707554,35.94115271,184.85,184.8,0.03]
[1739773707862,10.12489723,184.83,184.8,0.03]
[1739773709179,15.53569723,184.82,184.8,0.03]
[1739773709380,10.12489723,184.81,184.8,0.03]
[1739773710194,23.53674576,184.81,184.8,0.03]
[1739773711074,27.77973371,184.81,184.8,0.03]
[1739773711382,33.19063371,184.81,184.8,0.03]
[1739773711583,35.35416955,184.81,184.8,0.03]
[1739773712188,52.34433987,184.81,184.8,0.03]
[1739773712759,49.18080403,184.81,184.8,0.03]
[1739773714256,13.41184853,184.8,184.74,15.53769723]
[1739773714493,23.53674576,184.8,184.74,15.53769723]
[1739773714863,21.84632736,184.81,184.75,10.12489723]
[1739773715066,3.24298795,184.81,184.77,10.12489723]
[1739773715392,3.24298795,184.81,184.78,10.12489723]
[1739773715560,3.24298795,184.81,184.77,10.12489723]
[1739773715764,3.24298795,184.8,184.77,10.12489723]
[1739773717088,10.12489723,184.78,184.72,6.0075]
[1739773717290,10.12489723,184.74,184.72,6.0075]
[1739773717673,10.12489723,184.74,184.7,0.03]
[1739773717874,10.12489723,184.73,184.7,0.03]
[1739773718666,3.24298795,184.72,184.7,0.03]
[1739773719576,10.12489723,184.74,184.7,0.03]
[1739773720080,10.12489723,184.73,184.7,0.03]
[1739773720287,10.12489723,184.72,184.7,0.03]
[1739773720869,13.3494727,184.72,184.7,0.03]
[1739773721283,10.12489723,184.71,184.7,0.03]
[1739773722277,13.3494727,184.71,184.7,0.03]
[1739773722474,18.7632727,184.71,184.7,0.03]
[1739773723592,32.17512123,184.71,184.7,0.03]
[1739773723792,18.7632727,184.71,184.7,0.03]
[1739773724103,13.3494727,184.71,184.7,0.03]
[1739773725110,18.7632727,184.71,184.7,0.03]
[1739773726203,3.22457547,184.71,184.7,0.03]
[1739773727882,10.12489723,184.74,184.7,0.03]
[1739773727883,3.22457547,184.73,184.7,0.03]
[1739773731585,13.3494727,184.73,184.7,0.03]
[1739773732716,3.22457547,184.72,184.7,0.03]
[1739773738986,3.22457547,184.71,184.7,0.03]
[1739773745029,13.3494727,184.71,184.7,0.03]
[1739773745419,18.7632727,184.71,184.7,0.03]
[1739773745822,13.3494727,184.71,184.7,0.03]
[1739773746136,18.7632727,184.71,184.7,0.03]
[1739773746510,13.3494727,184.71,184.7,0.03]
[1739773748514,32.17512123,184.71,184.7,0.03]
[1739773750345,32.17512123,184.71,184.67,0.03]
[1739773750516,10.12489723,184.68,184.67,0.03]
[1739773751617,13.3494727,184.68,184.67,0.03]
[1739773753824,3.22457547,184.68,184.67,0.03]
[1739773754645,3.22457547,184.68,184.67,10.15489723]
[1739773755952,3.22457547,184.68,184.67,5.445]
[1739773756447,3.22457547,184.68,184.67,0.03]
[1739773759636,13.3494727,184.68,184.67,0.03]
[1739773759812,18.7641727,184.68,184.67,0.03]
[1739773760010,62.17602123,184.68,184.67,0.03]
[1739773760753,32.17602123,184.68,184.67,0.03]
[1739773761250,102.67561015,184.68,184.67,0.03]
[1739773763542,103.67561015,184.68,184.67,0.03]
[1739773763925,102.67561015,184.68,184.67,0.03]
[1739773764534,103.67561015,184.68,184.67,0.03]
[1739773764950,112.15405233,184.68,184.67,0.03]
[1739773765153,111.15405233,184.68,184.67,0.03]
[1739773767057,102.67561015,184.68,184.67,0.03]
[1739773769355,111.15405233,184.68,184.67,0.03]
[1739773772261,102.67561015,184.68,184.67,0.03]
[1739773774754,50.0,184.66,184.65,0.03]
[1739773775059,48.82774853,184.64,184.63,0.03]
[1739773775265,60.95264576,184.64,184.63,0.03]
[1739773775464,64.41184853,184.62,184.61,0.03]
[1739773775762,74.53674576,184.62,184.61,0.03]
[1739773776661,30.0,184.58,184.57,0.03]
[1739773776862,53.53674576,184.58,184.57,0.03]
[1739773777238,55.68425728,184.58,184.57,0.03]
[1739773777765,53.53674576,184.58,184.57,0.03]
[1739773778556,56.76132123,184.58,184.57,0.03]
[1739773778949,62.17902123,184.58,184.57,0.03]
[1739773783859,56.76132123,184.58,184.57,0.03]
[1739773784165,13.3494727,184.58,184.57,0.03]
[1739773784751,3.22457547,184.58,184.57,6.595]
[1739773787472,3.22457547,184.59,184.57,6.595]
[1739773788972,3.22457547,184.58,184.57,22.13779723]
[1739773789645,3.22457547,184.58,184.57,12.0129]
[1739773790383,3.22457547,184.58,184.57,6.595]
[1739773790786,3.28757547,184.61,184.57,6.595]
[1739773791282,10.12489723,184.6,184.57,6.595]
[1739773791492,10.12489723,184.59,184.57,6.595]
[1739773791789,10.12489723,184.6,184.57,6.595]
[1739773792864,3.22457547,184.59,184.57,6.595]
[1739773793278,13.3494727,184.59,184.57,6.595]
[1739773794173,3.22457547,184.58,184.57,6.595]
[1739773794560,13.3494727,184.58,184.57,0.03]
[1739773794991,18.7671727,184.58,184.57,0.03]
[1739773805502,13.3494727,184.58,184.57,0.03]
[1739773805677,3.22457547,184.58,184.57,0.03]
[1739773806594,8.64227547,184.58,184.57,0.03]
[1739773806770,18.7671727,184.58,184.57,0.03]
[1739773807176,32.17902123,184.58,184.57,0.03]
[1739773807371,62.17902123,184.58,184.57,0.03]
[1739773808487,62.17902123,184.58,184.56,0.03]
[1739773808812,24.53674576,184.57,184.56,0.03]
[1739773809310,43.41184853,184.56,184.55,0.03]
[1739773809613,29.95614576,184.52,184.51,0.03]
[1739773809817,70.45573468,184.52,184.51,0.03]
[1739773810501,29.95614576,184.52,184.51,0.03]
[1739773810897,33.18072123,184.52,184.51,0.03]
[1739773811097,32.18072123,184.52,184.51,0.03]
[1739773811504,13.3494727,184.52,184.51,0.03]
[1739773811707,3.22457547,184.52,184.51,0.03]
[1739773812090,3.22457547,184.52,184.51,16.56779723]
[1739773812591,16.99017032,184.6,184.54,20.0]
[1739773812592,8.47844218,184.55,184.54,20.0]
[1739773812912,8.47844218,184.55,184.54,30.12489723]
[1739773813286,8.47844218,184.55,184.53,10.12489723]
[1739773813486,10.12489723,184.54,184.52,5.4194]
[1739773813795,10.12489723,184.54,184.51,11.8625]
[1739773814006,10.12489723,184.54,184.51,6.4429]
[1739773814508,10.12489723,184.53,184.51,6.4429]
[1739773814809,15.88810859,184.53,184.51,6.4429]
[1739773815110,15.88810859,184.52,184.51,0.03]
[1739773815978,21.30750859,184.52,184.51,0.03]
[1739773819991,34.71935712,184.52,184.51,0.03]
[1739773822388,64.71935712,184.52,184.51,0.03]
[1739773824626,34.71935712,184.52,184.51,0.03]
[1739773825115,64.71935712,184.52,184.51,0.03]
[1739773825492,34.71935712,184.52,184.51,0.03]
[1739773825905,34.78235712,184.52,184.51,0.03]
[1739773828229,21.37050859,184.52,184.51,0.03]
[1739773834299,64.78235712,184.52,184.51,0.03]
[1739773834827,59.06927051,184.52,184.51,0.03]
[1739773835206,29.06927051,184.52,184.51,0.03]
[1739773840627,10.23802198,184.52,184.51,0.03]
[1739773841215,29.06927051,184.52,184.51,0.03]
[1739773843136,10.23802198,184.52,184.51,0.03]
[1739773847623,0.063,184.52,184.51,0.03]
[1739773849238,0.063,184.52,184.51,1.5794]
[1739773849421,0.013,184.52,184.51,1.5794]
[1739773850225,0.013,184.52,184.51,6.9991]
[1739773851114,0.013,184.52,184.51,98.67412198]
[1739773851635,8.47844218,184.55,184.51,112.22352198]
[1739773851934,8.47844218,184.55,184.54,10.17502198]
[1739773852139,8.47844218,184.55,184.54,15.59382198]
[1739773852732,8.47844218,184.59,184.54,15.59382198]
[1739773852929,8.47844218,184.59,184.57,10.17502198]
[1739773853130,8.47844218,184.59,184.58,10.17502198]
[1739773853440,8.47844218,184.59,184.57,10.17502198]
[1739773854331,8.47844218,184.59,184.58,10.17502198]
[1739773855429,0.063,184.61,184.58,10.17502198]
[1739773855830,0.063,184.61,184.59,11.72442198]
[1739773856038,0.063,184.61,184.6,10.17502198]
[1739773856427,0.063,184.61,184.6,15.59212198]
[1739773856640,0.063,184.61,184.59,17.14182198]
[1739773858039,0.063,184.61,184.6,10.17502198]
[1739773858451,0.063,184.61,184.6,15.59212198]
[1739773859036,0.063,184.61,184.6,103.49102198]
[1739773859527,8.47844218,184.68,184.63,20.0]
[1739773859719,8.47844218,184.68,184.66,10.17502198]
[1739773859920,10.23802198,184.7,184.64,10.17502198]
[1739773860141,10.23802198,184.7,184.6,106.8587]
[1739773860142,10.17502198,184.67,184.61,10.17502198]
[1739773860341,10.17502198,184.66,184.61,10.17502198]
[1739773860643,15.86488188,184.66,184.61,15.86488188]
[1739773861524,15.86488188,184.65,184.6,103.76378188]
[1739773861715,15.86488188,184.65,184.6,6.3989]
[1739773861716,0.063,184.61,184.6,6.3989]
[1739773863928,0.063,184.61,184.6,27.68088188]
[1739773864245,0.063,184.61,184.6,109.18088188]
[1739773864560,0.063,184.7,184.63,20.0]
[1739773864726,0.063,184.7,184.66,15.86488188]
[1739773865418,15.86488188,184.67,184.63,81.5]
[1739773865620,15.86488188,184.67,184.61,15.86488188]
[1739773865847,15.86488188,184.66,184.6,27.68078188]
[1739773866053,15.86488188,184.61,184.56,15.86488188]
[1739773866351,15.86488188,184.62,184.56,15.86488188]
[1739773866529,15.86488188,184.63,184.57,15.86488188]
[1739773867149,15.86488188,184.67,184.61,15.86488188]
[1739773867352,15.86488188,184.68,184.62,15.86488188]
[1739773867526,15.86488188,184.69,184.63,15.86488188]
[1739773867849,0.063,184.7,184.65,15.86488188]
[1739773868062,0.063,184.7,184.66,15.86488188]
[1739773868754,0.063,184.7,184.67,15.86488188]
[1739773869135,0.063,184.7,184.68,15.86488188]
[1739773869448,0.063,184.7,184.69,22.26378188]
[1739773871541,0.063,184.7,184.69,111.68838188]
[1739773872551,0.063,184.7,184.69,112.68838188]
[1739773872951,0.063,184.7,184.69,111.68838188]
[1739773873156,0.063,184.7,184.69,112.68838188]
[1739773874536,0.063,184.71,184.7,1.0]
[1739773874740,0.063,184.71,184.7,36.50245841]
[1739773875162,0.063,184.71,184.7,35.50245841]
[1739773875367,0.063,184.71,184.7,36.50245841]
[1739773875532,0.063,184.71,184.7,118.00245841]
[1739773875736,0.063,184.71,184.7,117.19083041]
[1739773876466,0.063,184.71,184.7,118.19083041]
[1739773877068,0.063,184.8,184.73,20.0]
[1739773877243,0.063,184.8,184.79,15.86488188]
[1739773877437,0.063,184.8,184.77,15.86488188]
[1739773877661,0.063,184.8,184.76,15.86488188]
[1739773877858,0.063,184.8,184.76,35.86488188]
[1739773878635,0.063,184.8,184.76,41.27718188]
[1739773878865,0.063,184.8,184.77,15.86488188]
[1739773879071,0.063,184.8,184.78,15.86488188]
[1739773880171,0.063,184.8,184.79,15.86488188]
[1739773880965,0.063,184.8,184.79,102.77638188]
[1739773881267,0.063,184.8,184.79,103.58786378]
[1739773881568,0.063,184.8,184.79,97.36488188]
[1739773882162,0.063,184.8,184.79,102.77638188]
[1739773882668,0.063,184.8,184.79,97.36488188]
[1739773882967,0.063,184.8,184.79,102.77638188]
[1739773885052,0.063,184.8,184.79,103.77638188]
[1739773886763,0.063,184.8,184.79,118.18823041]
[1739773888276,0.063,184.8,184.79,116.18823041]
[1739773888463,0.063,184.8,184.79,103.77638188]
[1739773888652,0.063,184.8,184.79,104.77638188]
[1739773888853,0.063,184.8,184.79,118.18823041]
[1739773891602,0.063,184.84,184.83,15.86488188]
[1739773891749,0.063,184.84,184.83,118.17605248]
[1739773891957,0.063,184.84,184.83,117.36488188]
[1739773892180,0.063,184.84,184.83,97.36488188]
[1739773892379,0.063,184.84,184.83,98.17605482]
[1739773893163,0.063,184.84,184.83,104.58635482]
[1739773893354,0.063,184.84,184.83,118.18703041]
[1739773893561,0.063,184.87,184.86,20.0]
[1739773893753,0.063,184.87,184.86,36.6759311]
[1739773893959,0.063,184.87,184.86,52.54081298]
[1739773894678,0.063,184.87,184.86,134.04081298]
[1739773894984,0.063,184.87,184.86,138.63916376]
[1739773895969,0.063,184.87,184.86,122.77428188]
[1739773898064,0.063,184.87,184.86,139.63916376]
[1739773898259,0.063,184.88,184.87,2.0]
[1739773898465,0.063,184.88,184.87,100.17580459]
[1739773899199,0.063,184.89,184.87,100.17580459]
[1739773899200,0.063,184.89,184.88,2.0]
[1739773899373,0.063,184.91,184.9,17.86488188]
[1739773899589,0.063,184.91,184.9,32.0875039]
[1739773899969,0.063,184.91,184.9,113.5875039]
[1739773900176,0.063,184.91,184.9,112.77673041]
[1739773900482,0.063,184.95,184.91,2.0]
[1739773900688,0.063,184.95,184.91,100.17561444]
[1739773900857,0.063,184.95,184.91,113.58746297]
[1739773901063,0.063,184.95,184.91,112.77673041]
[1739773901584,0.063,184.95,184.91,104.77288188]
[1739773902088,0.063,184.95,184.93,22.0]
[1739773902266,0.063,184.95,184.93,54.54042356]
[1739773902464,0.063,184.95,184.94,2.0]
[1739773902686,0.063,184.95,184.94,53.72976376]
[1739773903083,0.063,184.95,184.94,141.28946376]
[1739773903477,0.063,184.95,184.94,146.69656376]
[1739773904395,0.063,184.95,184.86,5.4094]
[1739773904683,15.86488188,184.91,184.86,5.4094]
[1739773904991,15.86488188,184.9,184.83,15.86488188]
[1739773905288,15.86488188,184.89,184.83,15.86488188]
[1739773905455,15.86488188,184.9,184.83,15.86488188]
[1739773905660,15.86488188,184.9,184.84,8.188e-05]
[1739773905854,1.5252,184.92,184.81,15.86488188]
[1739773905855,20.0,184.84,184.81,15.86488188]
[1739773906070,15.86488188,184.83,184.8,0.063]
[1739773906277,15.86488188,184.84,184.8,0.063]
[1739773906694,25.33601537,184.84,184.8,0.063]
[1739773908794,25.33601537,184.85,184.8,0.063]
[1739773909469,25.33601537,184.87,184.81,25.33601537]
[1739773909667,25.33601537,184.88,184.82,25.33601537]
[1739773909888,25.33601537,184.87,184.81,30.74691537]
[1739773910295,25.33601537,184.88,184.82,25.33601537]
[1739773910996,25.33601537,184.87,184.81,30.74691537]
[1739773911191,25.33601537,184.86,184.81,30.74691537]
[1739773911579,25.33601537,184.87,184.81,30.74691537]
[1739773911784,25.33601537,184.88,184.82,25.33601537]
[1739773912106,25.33601537,184.87,184.81,30.74691537]
[1739773912406,25.33601537,184.86,184.81,5.4109]
[1739773912894,25.33601537,184.85,184.81,5.4109]
[1739773913105,25.33601537,184.82,184.8,0.063]
[1739773913304,13.41184853,184.9,184.8,0.063]
[1739773913483,25.33601537,184.84,184.8,5.4742]
[1739773914307,25.33601537,184.83,184.8,5.4742]
[1739773914796,25.33601537,184.83,184.8,0.063]
[1739773915001,25.33601537,184.82,184.8,0.063]
[1739773915494,25.33601537,184.83,184.8,0.063]
[1739773915699,25.33601537,184.82,184.8,0.063]
[1739773915904,25.33601537,184.81,184.8,0.063]
[1739773916576,25.33601537,184.82,184.8,0.063]
[1739773916783,25.33601537,184.81,184.8,0.063]
[1739773920278,25.33601537,184.82,184.8,0.063]
[1739773920807,26.89121537,184.84,184.8,0.063]
[1739773921731,0.03,184.84,184.8,25.39901537]
[1739773921878,25.36601537,184.84,184.8,0.063]
[1739773922317,0.03,184.84,184.8,0.063]
[1739773922897,0.03,184.84,184.82,25.33601537]
[1739773923782,0.03,184.84,184.83,25.33601537]
[1739773924178,0.03,184.84,184.82,106.83601537]
[1739773925011,0.03,184.84,184.83,5.4103]
[1739773925401,0.03,184.84,184.83,30.74631537]
[1739773925601,25.33601537,184.92,184.86,20.0]
[1739773925915,25.33601537,184.92,184.86,45.33601537]
[1739773926112,25.33601537,184.9,184.86,20.0]
[1739773926310,25.33601537,184.87,184.83,5.4103]
[1739773926604,15.83338409,184.84,184.83,5.4103]
[1739773926788,15.83338409,184.84,184.81,5.4106]
[1739773928109,15.83338409,184.85,184.81,5.4106]
[1739773928507,5.4083,184.9,184.8,0.063]
[1739773928508,15.83338409,184.82,184.8,0.063]
[1739773928712,25.34214726,184.81,184.8,0.063]
[1739773930310,25.34214726,184.83,184.8,5.4741]
[1739773930496,25.34214726,184.83,184.8,0.063]
[1739773931013,25.34214726,184.82,184.8,0.063]
[1739773931810,25.34214726,184.81,184.8,0.063]
[1739773933617,30.75304726,184.81,184.8,0.063]
[1739773933823,25.34214726,184.81,184.8,0.063]
[1739773935488,25.34214726,184.83,184.8,0.063]
[1739773935692,25.34214726,184.84,184.8,0.063]
[1739773935893,25.34214726,184.86,184.8,25.40514726]
[1739773936409,25.34214726,184.87,184.81,25.34214726]
[1739773936736,25.34214726,184.88,184.83,5.4103]
[1739773937221,25.34214726,184.89,184.83,30.75244726]
[1739773937998,25.34214726,184.91,184.85,25.34214726]
[1739773938824,8.54144218,184.95,184.87,25.34214726]
[1739773939030,25.34214726,184.93,184.87,25.34214726]
[1739773939393,25.34214726,184.92,184.86,30.75154726]
[1739773939706,25.34214726,184.91,184.86,5.4094]
[1739773939901,30.81204726,184.95,184.85,6.5556]
[1739773940089,25.34214726,184.86,184.83,81.5]
[1739773940425,25.34214726,184.86,184.82,5.4104]
[1739773940927,25.34214726,184.86,184.81,5.4109]
[1739773942718,25.34214726,184.88,184.82,25.34214726]
[1739773943016,25.34214726,184.89,184.83,25.34214726]
[1739773943701,25.34214726,184.9,184.84,30.75214726]
[1739773944026,25.34214726,184.9,184.84,112.25214726]
[1739773944251,25.34214726,184.91,184.85,25.34214726]
[1739773945322,25.34214726,184.92,184.86,25.34214726]
[1739773945899,25.34214726,184.92,184.85,81.5]
[1739773945900,25.34214726,184.92,184.87,30.75134726]
[1739773946120,25.34214726,184.92,184.87,5.4092]
[1739773946301,25.34214726,184.93,184.87,30.75134726]
[1739773946627,25.40514726,184.95,184.89,25.34214726]
[1739773947009,25.34214726,184.94,184.88,25.34214726]
[1739773947327,25.34214726,184.91,184.87,86.9092]
[1739773947503,25.34214726,184.92,184.87,86.9092]
[1739773948142,25.34214726,184.91,184.87,86.9092]
[1739773948829,25.34214726,184.91,184.87,85.9112]
[1739773949822,25.34214726,184.88,184.87,81.5]
[1739773950042,25.34214726,184.88,184.83,81.5]
[1739773950338,25.34214726,184.84,184.81,5.4109]
[1739773950636,25.34214726,184.82,184.8,0.063]
[1739773950843,25.34214726,184.81,184.8,0.063]
[1739773951028,25.34214726,184.82,184.8,0.063]
[1739773951928,25.34214726,184.86,184.8,50.81624726]
[1739773954285,25.34214726,184.86,184.8,64.34434726]
[1739773954647,15.83016238,184.86,184.8,54.83236238]
[1739773955655,15.83016238,184.87,184.81,15.83016238]
[1739773956460,15.83016238,184.87,184.82,5.4106]
[1739773957054,15.83016238,184.86,184.82,5.4106]
[1739773957261,15.83016238,184.87,184.82,5.4106]
[1739773958737,15.86016238,184.88,184.82,34.76736238]
[1739773959047,15.83016238,184.87,184.82,100.4372]
[1739773960662,15.86016238,184.88,184.82,116.26736238]
[1739773960838,0.03,184.88,184.85,15.83016238]
[1739773961938,0.03,184.88,184.86,15.83016238]
[1739773962143,0.03,184.88,184.87,35.83016238]
[1739773962355,0.0001,184.88,184.87,117.33016238]
[1739773962863,0.0001,184.88,184.87,138.15121091]
[1739773964567,0.063,184.95,184.91,21.0]
[1739773964871,0.063,184.95,184.94,15.83016238]
[1739773965073,0.063,184.95,184.94,21.23726238]
[1739773966453,0.063,184.95,184.94,5.4071]
[1739773968565,0.063,184.95,184.92,15.83016238]
[1739773968783,0.063,184.95,184.92,21.23786238]
[1739773970266,0.063,184.95,184.93,15.83016238]
[1739773970470,0.063,184.95,184.92,21.23786238]
[1739773970677,0.063,184.95,184.94,5.4071]
[1739773972679,0.063,184.95,184.94,21.23726238]
[1739773973178,0.063,184.95,184.94,5.4071]
[1739773973379,0.063,184.95,184.94,21.23726238]
[1739773974951,0.063,184.95,184.94,102.73726238]
[1739773975158,0.063,184.95,184.94,105.54801635]
[1739773975382,0.063,184.95,184.94,103.73726238]
[1739773975570,0.063,184.95,184.94,104.73726238]
[1739773976364,0.063,184.97,184.96,20.0]
[1739773976569,0.063,184.97,184.96,35.83016238]
[1739773976787,0.063,184.97,184.96,41.23666238]
[1739773979486,0.063,184.97,184.96,122.73666238]
[1739773980385,0.063,184.97,184.96,86.9065]
[1739773981058,15.89316238,184.97,184.92,5.4077]
[1739773981972,0.063,184.97,184.92,21.23786238]
[1739773982473,15.89316238,184.97,184.92,5.4077]
[1739773983286,15.83016238,184.94,184.9,5.4081]
[1739773983465,15.83016238,184.93,184.9,5.4081]
[1739773984090,15.83016238,184.94,184.9,5.4081]
[1739773984515,15.83016238,184.95,184.89,21.23876238]
[1739773984788,15.83016238,184.96,184.9,15.83016238]
[1739773985984,15.83016238,184.95,184.91,5.408]
[1739773987401,15.83016238,184.96,184.91,5.408]
[1739773987901,15.83016238,184.95,184.91,5.408]
[1739773988106,15.83016238,184.95,184.9,5.4083]
[1739773988402,15.83016238,184.96,184.9,21.23846238]
[1739773989102,15.83016238,184.94,184.9,5.4083]
[1739773989883,15.83016238,184.94,184.9,5.4713]
[1739773990201,15.83016238,184.94,184.9,0.063]
[1739773991183,15.83016238,184.95,184.9,0.063]
[1739773993115,15.83016238,184.94,184.9,0.063]
[1739773993623,15.83016238,184.93,184.9,0.063]
[1739773993801,15.83016238,184.92,184.9,0.063]
[1739773994702,15.83016238,184.91,184.9,0.063]
[1739773995292,30.78121091,184.91,184.9,0.063]
[1739773995615,20.0,184.87,184.8,5.4742]
[1739773995793,15.83016238,184.83,184.8,0.063]
[1739773995994,15.83016238,184.83,184.8,5.4742]
[1739773996392,15.83016238,184.83,184.8,0.063]
[1739773996591,15.83016238,184.84,184.8,0.063]
[1739773996834,15.83016238,184.85,184.8,0.063]
[1739773997234,15.83016238,184.83,184.8,0.063]
[1739773997514,15.83016238,184.84,184.8,0.063]
[1739773998603,15.83016238,184.83,184.8,0.063]
[1739773999218,15.83016238,184.82,184.8,0.063]
[1739773999514,15.83016238,184.81,184.8,0.063]
[1739774004705,15.83016238,184.83,184.8,0.063]
[1739774006729,15.83016238,184.82,184.8,0.063]
[1739774006897,15.83016238,184.81,184.8,0.063]
[1739774008427,21.24106238,184.81,184.8,0.063]